bitfinex/quotes_SOLUSD_20250118
["timestamp","ask_amount","ask_price","bid_price","bid_amount"]
[1737218425325,32.75749117,245.25,244.8,32.75749117]
[1737218425522,14.264,245.37,245.19,32.75749117]
[1737218425751,0.70442106,245.24,245.01,44.1]
[1737218426043,30.0,245.58,245.01,44.1]
[1737218426044,30.0,245.85,245.03,7.5365]
[1737218426247,16.70725498,246.1,245.03,7.5365]
[1737218426248,14.49453269,246.0,245.03,7.5365]
[1737218426446,30.0,245.89,245.04,11.97]
[1737218426655,30.0,245.96,245.07,11.97]
[1737218426843,32.75749117,245.82,245.65,32.75749117]
[1737218427026,14.2282,245.99,245.65,32.75749117]
[1737218427226,32.75749117,245.87,245.71,32.75749117]
[1737218427425,14.2282,245.99,245.63,32.75749117]
[1737218427426,32.75749117,245.78,245.63,32.75749117]
[1737218427624,32.75749117,245.84,245.44,32.75749117]
[1737218427950,34.5542,245.99,245.49,12.0872]
[1737218428131,4.0652,245.99,245.82,32.75749117]
[1737218428330,4.0652,245.99,245.88,32.75749117]
[1737218428523,58.27669131,246.51,245.88,32.75749117]
[1737218428722,14.216,246.2,246.0,32.75749117]
[1737218428949,32.75749117,246.19,246.03,32.75749117]
[1737218429126,4.0617,246.2,246.03,32.75749117]
[1737218429325,30.0,246.66,246.09,32.75749117]
[1737218429539,32.75749117,246.36,246.18,32.75749117]
[1737218429837,0.0001,246.21,246.2,20.0]
[1737218430026,0.0001,246.21,245.97,44.02]
[1737218430246,0.0001,246.21,246.16,32.75749117]
[1737218430425,0.0001,246.21,245.94,12.0872]
[1737218430426,0.0001,246.21,246.1,32.75749117]
[1737218430629,0.0001,246.21,246.13,32.75749117]
[1737218430948,0.0001,246.21,246.1,4.0632]
[1737218430949,0.0001,246.21,246.2,32.75749117]
[1737218431142,0.0001,246.21,246.11,32.75749117]
[1737218431444,0.0001,246.21,246.2,32.75749117]
[1737218431853,32.42877327,246.6,246.2,32.42877327]
[1737218432056,32.42877327,246.6,246.45,32.42877327]
[1737218432228,32.42877327,246.48,246.21,0.74268771]
[1737218432434,32.42877327,246.34,246.17,32.42877327]
[1737218432630,10.2066,246.46,246.21,32.42877327]
[1737218432844,32.42877327,246.43,246.27,32.42877327]
[1737218433044,32.42877327,246.4,246.24,32.42877327]
[1737218433249,32.42877327,246.33,246.15,32.42877327]
[1737218433455,32.42877327,246.37,246.22,32.42877327]
[1737218433860,0.063,246.46,246.36,32.42877327]
[1737218434036,0.063,246.46,246.39,32.42877327]
[1737218434236,0.063,246.62,246.47,20.0]
[1737218434438,0.063,246.62,246.4,32.42877327]
[1737218434439,0.0001,246.62,246.61,32.42877327]
[1737218434639,0.0001,246.69,246.62,14.1918]
[1737218434844,0.0001,246.69,246.68,32.33053322]
[1737218435333,32.33053322,246.93,246.68,33.07180589]
[1737218435529,32.33053322,246.99,246.83,32.33053322]
[1737218435734,0.0001,246.87,246.86,32.33053322]
[1737218436158,0.0001,246.87,246.86,33.07126538]
[1737218436658,0.0001,246.87,246.86,36.38133322]
[1737218436859,20.15592286,247.31,246.86,36.38133322]
[1737218436860,20.70445671,247.42,246.86,4.79153216]
[1737218437058,32.33053322,247.33,247.17,32.33053322]
[1737218437357,32.33053322,247.18,246.99,32.33053322]
[1737218437553,20.93342192,247.5,246.99,0.74034229]
[1737218437747,4.0426,247.37,247.0,0.74031231]
[1737218437949,37.3928,247.24,247.0,0.74031231]
[1737218438145,20.07118942,247.72,247.0,0.74031231]
[1737218438344,20.29065351,247.7,247.0,0.74031231]
[1737218438543,32.33053322,247.37,247.22,32.33053322]
[1737218438850,32.33053322,247.37,247.0,0.74031231]
[1737218438851,32.33053322,247.23,247.0,0.74031231]
[1737218439046,32.33053322,247.23,246.56,7.8807]
[1737218439047,20.88452296,247.1,246.54,32.35829732]
[1737218439249,0.74031231,247.0,246.59,30.0]
[1737218439451,42.0581,246.95,246.32,4.0597]
[1737218439757,4.74210166,246.94,246.32,34.5077]
[1737218439952,0.70442106,246.94,246.33,0.74232591]
[1737218440162,32.35829732,246.64,246.47,32.35829732]
[1737218440344,32.35829732,246.61,246.44,32.35829732]
[1737218440544,32.35829732,246.58,246.44,32.35829732]
[1737218440745,32.35829732,246.62,246.47,32.35829732]
[1737218441056,32.35829732,247.04,246.59,32.35829732]
[1737218441271,32.35829732,246.85,246.68,32.35829732]
[1737218441446,32.35829732,246.82,246.67,32.35829732]
[1737218441762,32.35829732,246.92,246.45,34.4896]
[1737218441940,32.35829732,246.64,246.49,32.35829732]
[1737218442146,32.35829732,246.61,246.46,32.35829732]
[1737218442336,32.35829732,246.57,246.43,32.35829732]
[1737218442657,32.35829732,246.51,246.38,4.0587]
[1737218442839,32.35829732,246.57,246.43,32.35829732]
[1737218443039,20.69850103,246.81,246.38,4.0587]
[1737218443040,32.35829732,246.63,246.47,32.35829732]
[1737218443441,32.35829732,246.67,246.54,32.35829732]
[1737218443859,32.35829732,246.63,246.48,32.35829732]
[1737218444070,11.97,246.86,246.38,14.2056]
[1737218444071,32.35829732,246.6,246.45,32.35829732]
[1737218444267,32.35829732,246.72,246.29,4.0602]
[1737218444559,32.35829732,246.72,246.21,0.03]
[1737218444560,32.35829732,246.42,246.22,14.2149]
[1737218444872,36.9241333,246.72,246.22,4.0614]
[1737218444873,11.97,246.66,246.22,4.0614]
[1737218445047,61.97,246.61,246.21,0.03]
[1737218445367,11.97,246.54,246.21,0.03]
[1737218445539,11.97,246.45,245.87,4.0671]
[1737218445743,11.97,246.27,245.72,4.0695]
[1737218445941,32.35829732,246.08,245.72,4.0695]
[1737218446147,32.35829732,245.99,245.82,32.35829732]
[1737218446369,32.35829732,246.08,245.91,32.35829732]
[1737218446672,32.35829732,246.14,246.0,32.35829732]
[1737218446843,32.35829732,246.18,246.04,32.35829732]
[1737218447044,32.35829732,246.2,246.04,32.35829732]
[1737218447256,32.35829732,246.09,245.93,32.35829732]
[1737218447458,4.0605,246.27,245.77,14.2409]
[1737218447666,30.0,246.08,245.54,14.2542]
[1737218447848,30.0,246.05,245.54,4.0726]
[1737218448046,30.0,246.02,245.31,4.0764]
[1737218448262,30.0,246.02,245.31,14.2675]
[1737218448263,33.36218615,246.02,245.31,14.2675]
[1737218448461,11.97,245.98,245.31,14.2675]
[1737218448770,32.35829732,245.6,245.45,32.35829732]
[1737218448964,32.35829732,245.63,245.51,32.35829732]
[1737218449174,32.35829732,245.74,245.6,32.35829732]
[1737218449367,0.70442106,245.97,245.72,32.35829732]
[1737218449560,0.70442106,245.97,245.56,55.79]
[1737218449561,4.0615,246.21,245.7,12.6317]
[1737218449870,14.91982106,246.21,245.7,12.6317]
[1737218450067,0.70442106,246.2,245.7,12.6317]
[1737218450448,32.35829732,246.03,245.89,32.35829732]
[1737218450873,32.35829732,246.13,245.98,32.35829732]
[1737218451050,32.35829732,246.22,246.07,32.35829732]
[1737218451245,4.0608,246.26,245.9,14.2333]
[1737218451461,32.35829732,246.19,246.02,32.35829732]
[1737218451662,32.35829732,246.28,246.14,32.35829732]
[1737218451855,32.35829732,246.25,246.11,32.35829732]
[1737218452050,32.35829732,246.12,245.9,34.5667]
[1737218452273,32.35829732,246.12,245.98,32.35829732]
[1737218452553,32.35829732,246.0,245.82,32.35829732]
[1737218452769,0.70442106,246.11,245.79,10.1712]
[1737218452976,14.2143,246.23,245.79,10.1712]
[1737218453274,4.0612,246.23,245.79,10.1712]
[1737218453471,0.70442106,246.23,245.79,10.1712]
[1737218453667,0.60004976,246.23,245.82,20.0]
[1737218453855,32.35829732,246.13,246.0,32.35829732]
[1737218454059,32.35829732,246.13,245.79,10.1712]
[1737218454060,32.35829732,246.28,246.12,32.35829732]
[1737218454254,32.35829732,246.31,246.15,32.35829732]
[1737218454455,32.35829732,246.28,246.12,32.35829732]
[1737218454679,32.35829732,246.17,246.04,32.35829732]
[1737218454852,32.35829732,246.14,246.01,32.35829732]
[1737218455057,32.35829732,246.16,246.01,32.35829732]
[1737218455969,20.7889536,246.87,246.15,32.35829732]
[1737218456146,42.49279732,246.69,246.42,32.35829732]
[1737218456349,0.0001,246.45,246.41,32.35829732]
[1737218456552,0.0001,246.45,246.44,32.35829732]
[1737218456771,0.0001,246.45,246.17,14.2177]
[1737218457075,0.0001,246.45,246.2,20.0]
[1737218457772,32.35829732,246.76,246.44,32.35829732]
[1737218457964,32.35829732,246.79,246.66,32.35829732]
[1737218458194,32.35829732,246.82,246.69,32.35829732]
[1737218458366,32.35829732,246.88,246.72,32.35829732]
[1737218458567,32.35829732,246.84,246.69,32.35829732]
[1737218458874,32.35829732,246.84,246.4,88.18829732]
[1737218458875,20.2108,247.4,246.88,20.0]
[1737218459079,32.35829732,247.34,247.11,32.35829732]
[1737218459280,0.0001,247.12,247.11,32.35829732]
[1737218460275,129.43318928,248.32,247.11,32.35829732]
[1737218460276,46.3299,247.29,247.12,11.97]
[1737218460579,32.35829732,247.51,247.28,32.35829732]
[1737218460876,32.35829732,247.41,247.28,32.35829732]
[1737218461074,14.1379,247.56,247.23,4.0446]
[1737218461277,4.0394,247.56,247.23,14.1566]
[1737218461478,14.1379,247.56,247.23,4.0446]
[1737218461656,41.97,247.25,246.67,4.0539]
[1737218461857,11.97,247.2,246.7,30.0]
[1737218462053,32.35829732,247.04,246.71,32.35829732]
[1737218462285,32.35829732,246.86,246.71,32.35829732]
[1737218462460,32.35829732,246.86,246.67,4.0539]
[1737218462662,32.35829732,246.77,246.63,32.35829732]
[1737218462864,32.35829732,246.86,246.45,12.4149]
[1737218463069,32.35829732,246.86,246.71,32.35829732]
[1737218463269,14.1688,247.02,246.46,35.23013436]
[1737218463478,4.0448,247.23,246.47,11.97]
[1737218463681,12.7093,247.46,247.12,32.35829732]
[1737218463682,32.35829732,247.28,247.12,32.35829732]
[1737218463878,4.0437,247.3,247.15,32.35829732]
[1737218464083,32.35829732,247.43,247.27,32.35829732]
[1737218464262,32.35829732,247.49,247.34,32.35829732]
[1737218464469,44.1225,247.83,247.48,32.35829732]
[1737218464660,11.97,247.76,247.58,32.35829732]
[1737218464866,32.35829732,247.8,247.64,32.35829732]
[1737218465080,4.0345,247.86,247.71,32.35829732]
[1737218465375,32.35829732,247.86,247.71,32.35829732]
[1737218465710,32.35829732,247.86,247.43,14.1453]
[1737218465711,32.35829732,247.73,247.43,4.0415]
[1737218465879,32.35829732,247.58,247.43,32.35829732]
[1737218466063,32.35829732,247.61,247.46,32.35829732]
[1737218466257,32.35829732,247.74,247.59,32.35829732]
[1737218466581,32.35829732,247.77,247.63,32.35829732]
[1737218466758,32.35829732,247.8,247.66,32.35829732]
[1737218467360,32.35829732,247.8,247.67,4.0376]
[1737218467559,32.35829732,247.83,247.69,32.35829732]
[1737218467756,20.47539842,248.37,247.85,20.0]
[1737218467978,12.7093,248.4,247.63,12.4149]
[1737218467979,32.35829732,247.96,247.63,12.4149]
[1737218468183,32.35829732,248.02,247.86,32.35829732]
[1737218468367,32.35829732,248.02,247.87,32.35829732]
[1737218468689,14.1031,248.17,247.6,54.5232]
[1737218468858,20.0,248.14,247.6,40.3876]
[1737218469062,0.70442106,248.16,247.47,34.3474]
[1737218469383,34.2505,248.17,247.5,4.04029988]
[1737218469384,0.70442106,248.13,247.5,4.04029988]
[1737218469587,32.35829732,248.02,247.86,32.35829732]
[1737218469973,32.35829732,248.06,247.9,32.35829732]
[1737218470176,0.21923583,248.18,248.05,32.35829732]
[1737218470387,0.21923583,248.18,248.06,32.35829732]
[1737218470684,0.21923583,248.18,248.15,32.35829732]
[1737218470886,3.583e-05,248.18,248.15,32.35829732]
[1737218471082,3.583e-05,248.18,248.15,36.38799732]
[1737218471489,3.583e-05,248.18,248.12,32.35829732]
[1737218471995,3.583e-05,248.18,248.09,32.35829732]
[1737218472183,3.583e-05,248.18,248.08,32.35829732]
[1737218472381,3.583e-05,248.18,248.05,32.35829732]
[1737218472588,3.583e-05,248.18,248.13,32.35829732]
[1737218472979,3.583e-05,248.18,248.14,4.0299]
[1737218473178,3.583e-05,248.18,248.16,32.35829732]
[1737218473580,3.583e-05,248.18,248.13,32.35829732]
[1737218473781,3.583e-05,248.18,248.1,32.35829732]
[1737218473981,3.583e-05,248.18,248.07,32.35829732]
[1737218474303,32.35829732,248.16,247.93,34.2836]
[1737218474482,32.35829732,248.03,247.93,4.0333]
[1737218474693,52.50422059,247.95,247.52,4.04]
[1737218474890,32.35829732,247.73,247.59,32.35829732]
[1737218475089,14.1082,248.08,247.56,14.1379]
[1737218475487,0.70442106,248.07,247.56,14.1379]
[1737218475716,14.1082,248.08,247.56,34.335]
[1737218476084,32.35829732,247.91,247.73,32.35829732]
[1737218476407,32.35829732,247.91,247.57,0.73860783]
[1737218476408,12.7093,248.37,247.93,20.0]
[1737218476710,32.35829732,248.02,247.87,32.35829732]
[1737218476876,32.35829732,248.02,247.77,12.4149]
[1737218477081,32.35829732,247.91,247.74,32.35829732]
[1737218477281,10.0761,248.12,247.76,32.35829732]
[1737218477501,32.35829732,247.95,247.81,32.35829732]
[1737218477704,32.35829732,248.01,247.85,32.35829732]
[1737218478403,32.35829732,248.07,247.91,52.35829732]
[1737218478611,30.0,248.43,248.04,32.35829732]
[1737218478612,32.35829732,248.19,248.04,32.35829732]
[1737218478791,32.35829732,248.25,248.08,32.35829732]
[1737218479111,32.35829732,248.26,248.11,32.35829732]
[1737218479599,32.35829732,248.23,248.11,32.35829732]
[1737218479805,32.35829732,248.23,248.08,32.35829732]
[1737218479985,20.1234,248.47,248.13,32.35829732]
[1737218480179,32.35829732,248.25,248.1,32.35829732]
[1737218480379,32.35829732,248.2,248.06,36.38949732]
[1737218480701,20.66686583,248.06,247.6,32.35829732]
[1737218481009,20.7080348,248.14,247.72,32.35829732]
[1737218481300,4.0296,248.16,247.63,31.97]
[1737218481485,4.0296,248.16,247.64,0.73839905]
[1737218481693,14.1037,248.16,247.64,0.73839905]
[1737218481902,20.0,248.13,247.64,0.73839905]
[1737218482209,20.14584942,247.89,247.45,4.0412]
[1737218482390,32.35829732,247.62,247.46,32.35829732]
[1737218482595,32.35829732,247.62,247.49,32.35829732]
[1737218482909,32.35829732,247.64,247.49,32.35829732]
[1737218483091,32.35829732,247.56,247.26,12.6081]
[1737218483406,32.35829732,247.31,247.01,4.0484]
[1737218483712,32.35829732,247.32,247.17,32.35829732]
[1737218483884,32.35829732,247.68,247.02,11.97]
[1737218484079,32.35829732,247.68,247.04,11.97]
[1737218484287,12.9589,247.8,247.06,11.97]
[1737218484704,12.9589,247.8,247.08,11.97]
[1737218485010,12.9589,247.8,247.5,20.0]
[1737218485011,32.35829732,247.61,247.5,20.0]
[1737218485185,32.35829732,247.61,247.1,34.3989]
[1737218485186,32.35829732,247.61,247.45,32.35829732]
[1737218485391,32.35829732,247.57,247.43,32.35829732]
[1737218485713,32.35829732,247.44,247.1,34.3989]
[1737218485999,11.97,247.64,247.1,54.6336]
[1737218486202,30.0,247.59,247.1,14.1642]
[1737218486393,11.97,247.52,247.1,4.0469]
[1737218486798,20.93342192,247.5,247.13,32.35829732]
[1737218487003,32.35829732,247.27,247.16,4.0459]
[1737218487212,0.70442106,247.51,246.88,24.3032]
[1737218487213,32.35829732,247.19,246.88,24.3032]
[1737218487505,32.35829732,247.09,246.96,32.35829732]
[1737218487711,32.35829732,247.19,247.07,32.35829732]
[1737218487885,4.0428,247.35,246.88,34.4295]
[1737218488203,14.1499,247.35,246.88,74.9349]
[1737218488508,11.97,247.24,246.65,14.1901]
[1737218488805,30.0,247.29,246.65,14.93146283]
[1737218488984,32.35829732,246.97,246.84,14.1792]
[1737218489180,32.35829732,246.99,246.85,32.35829732]
[1737218489491,4.0453,247.2,246.81,0.03]
[1737218489492,32.35829732,246.93,246.81,0.03]
[1737218489682,32.35829732,247.01,246.88,0.03]
[1737218489878,0.70442106,247.23,247.0,32.35829732]
[1737218490108,20.5063919,247.65,247.21,32.35829732]
[1737218490407,20.5063919,247.65,247.01,12.6081]
[1737218490408,12.9589,247.33,246.88,0.03]
[1737218490589,34.84943984,247.21,246.88,0.03]
[1737218490793,68.29403651,247.32,246.81,0.03]
[1737218490794,4.84943984,247.09,246.81,0.03]
[1737218491104,4.84943984,247.09,246.5,4.0567]
[1737218491105,30.0,246.95,246.5,4.0567]
[1737218491406,32.35829732,246.52,246.27,40.53829732]
[1737218491594,32.35829732,246.49,246.45,4.0876]
[1737218491791,32.35829732,246.58,246.45,36.44589732]
[1737218491982,32.35829732,246.55,246.45,4.0876]
[1737218492489,32.35829732,246.64,246.5,32.35829732]
[1737218492683,32.35829732,246.66,246.52,32.35829732]
[1737218492889,32.35829732,246.76,246.61,32.35829732]
[1737218493202,32.35829732,246.85,246.71,32.35829732]
[1737218493400,32.35829732,246.87,246.73,32.35829732]
[1737218494492,32.35829732,246.08,246.06,30.0]
[1737218494692,32.35829732,246.4,246.06,30.0]
[1737218494693,32.35829732,246.11,246.06,30.0]
[1737218494902,32.35829732,246.11,245.99,10.1629]
[1737218495308,32.35829732,246.14,246.01,32.35829732]
[1737218495508,32.35829732,246.17,246.01,32.35829732]
[1737218496189,32.35829732,246.25,246.11,32.35829732]
[1737218496387,42.7091,246.64,246.2,52.35829732]
[1737218496388,32.35829732,246.34,246.2,52.35829732]
[1737218496611,32.35829732,246.36,246.22,32.35829732]
[1737218497112,32.35829732,246.4,246.3,20.0]
[1737218497294,32.35829732,246.4,246.27,32.35829732]
[1737218497490,10.1354,246.67,246.27,32.35829732]
[1737218497691,32.35829732,246.47,246.33,32.35829732]
[1737218497896,32.35829732,246.49,246.35,32.35829732]
[1737218498096,32.35829732,246.49,246.38,20.0]
[1737218498507,32.35829732,246.51,246.4,20.0]
[1737218498710,10.131,246.77,246.42,20.0]
[1737218499016,32.35829732,246.55,246.37,14.2062]
[1737218499215,32.35829732,246.63,246.49,32.35829732]
[1737218499414,32.35829732,246.65,246.56,20.0]
[1737218499623,4.0497,246.93,246.58,20.0]
[1737218499791,4.0497,246.93,246.46,20.0]
[1737218500302,4.0497,246.93,246.37,34.5008]
[1737218500506,12.7091,247.2,246.41,20.0]
[1737218500808,32.35829732,247.02,246.89,20.0]
[1737218501009,0.70442106,247.2,247.02,4.0482]
[1737218501209,0.70442106,247.2,246.8,43.76]
[1737218501407,4.0454,247.19,246.81,14.1808]
[1737218501598,16.0154,247.19,246.81,14.1808]
[1737218501909,4.0454,247.19,246.84,20.0]
[1737218502116,14.159,247.19,246.84,20.0]
[1737218502309,4.0454,247.19,246.84,20.0]
[1737218502505,4.0454,247.19,246.81,14.1808]
[1737218502506,0.063,247.06,246.81,14.1808]
[1737218502821,32.35829732,247.04,246.73,32.35829732]
[1737218503002,0.063,247.06,246.77,32.35829732]
[1737218503003,32.35829732,246.89,246.77,32.35829732]
[1737218503201,0.063,247.06,246.63,32.35829732]
[1737218503202,32.35829732,246.78,246.63,32.35829732]
[1737218503404,32.35829732,246.76,246.63,32.35829732]
[1737218503609,0.063,246.81,246.67,32.35829732]
[1737218503803,0.063,246.81,246.57,20.2777]
[1737218504118,4.048,247.03,246.58,0.74157329]
[1737218504304,10.1157,247.15,246.58,0.74157329]
[1737218504510,10.113,247.21,246.6,20.0]
[1737218504814,32.35829732,247.07,246.95,32.35829732]
[1737218505011,32.35829732,247.05,246.93,32.35829732]
[1737218505216,32.35829732,247.09,246.95,32.35829732]
[1737218505420,32.35829732,247.07,246.95,32.35829732]
[1737218505601,32.35829732,247.07,246.94,14.1734]
[1737218505805,32.35829732,247.24,247.05,52.35829732]
[1737218506004,42.7091,247.58,246.94,26.1434]
[1737218506005,7.8972,247.71,247.13,20.0]
[1737218506326,4.0376,247.67,247.14,43.76]
[1737218506496,4.0376,247.67,246.94,34.4212]
[1737218506497,4.63589778,247.67,247.16,19.9085]
[1737218506696,4.0363,247.75,247.15,43.76]
[1737218506697,12.7091,248.16,247.19,12.2017]
[1737218506894,4.0319,248.02,247.21,24.1717]
[1737218507128,32.35829732,247.94,247.8,32.35829732]
[1737218507329,14.1076,248.09,247.6,12.5118]
[1737218507330,14.1076,248.09,247.82,32.35829732]
[1737218507503,32.35829732,248.04,247.9,32.35829732]
[1737218507822,4.0294,248.17,247.6,44.6749]
[1737218508116,84.3979,248.17,247.6,32.7049]
[1737218508411,0.70442106,248.16,247.6,32.7049]
[1737218508604,30.70442106,248.16,247.6,32.7049]
[1737218508805,11.97,248.12,247.6,12.5118]
[1737218509012,32.35829732,247.77,247.63,32.35829732]
[1737218509222,52.836041,248.0,247.6,12.5118]
[1737218509223,0.61222594,247.76,247.67,32.35829732]
[1737218509427,32.35829732,247.8,247.61,14.7406694]
[1737218509428,0.61222594,247.79,247.7,32.35829732]
[1737218509602,32.35829732,247.74,247.62,32.96389123]
[1737218509799,0.61222594,247.73,247.62,0.6057029]
[1737218509997,0.61222594,247.98,247.62,0.6057029]
[1737218510605,20.0,247.96,247.61,4.0386]
[1737218510803,0.61222594,247.95,247.62,0.60570593]
[1737218511123,32.35829732,247.78,247.65,32.35829732]
[1737218511294,0.61222594,247.95,247.66,0.60558547]
[1737218511499,32.35829732,247.8,247.67,32.35829732]
[1737218511717,0.61222594,247.79,247.68,0.60546012]
[1737218512107,32.35829732,247.84,247.71,32.35829732]
[1737218512314,32.35829732,247.82,247.71,32.35829732]
[1737218512506,0.61222594,247.81,247.72,0.60529171]
[1737218512704,4.0306,248.1,247.75,35.746884]
[1737218513028,12.4337,248.54,247.91,32.35829732]
[1737218513029,32.35829732,248.05,247.91,32.35829732]
[1737218513314,32.35829732,248.03,247.9,14.1184]
[1737218513500,32.35829732,248.0,247.9,0.60500771]
[1737218513701,14.1037,248.16,247.86,4.63943351]
[1737218513902,46.2219,248.16,247.86,4.63943351]
[1737218514119,14.1037,248.16,247.86,4.0345]
[1737218514327,20.28237819,248.33,247.86,4.0345]
[1737218514510,10.0603,248.51,247.9,20.0]
[1737218514823,10.0603,248.51,247.87,9.66786076]
[1737218514824,32.35829732,248.36,248.17,32.35829732]
[1737218515122,32.35829732,248.38,248.17,36.38769732]
[1737218515323,20.06298633,248.54,248.17,4.0294]
[1737218515515,32.35829732,248.38,248.24,32.35829732]
[1737218515713,32.35829732,248.38,248.25,0.60410299]
[1737218516025,32.35829732,248.41,248.3,32.35829732]
[1737218516208,32.35829732,248.34,248.21,32.35829732]
[1737218516409,32.35829732,248.34,248.22,0.60414035]
[1737218516606,34.1941,248.58,248.29,32.35829732]
[1737218516905,32.35829732,248.38,248.27,32.35829732]
[1737218517221,32.35829732,248.32,248.19,32.35829732]
[1737218517424,32.35829732,248.3,248.19,32.35829732]
[1737218517630,4.0249,248.45,248.24,32.35829732]
[1737218517938,32.35829732,248.3,248.17,32.35829732]
[1737218518121,32.35829732,248.31,248.18,0.60445494]
[1737218518316,32.35829732,248.35,248.23,32.35829732]
[1737218518520,32.35829732,248.37,248.23,32.35829732]
[1737218518831,32.35829732,248.37,248.25,32.35829732]
[1737218519205,32.35829732,248.31,248.19,32.35829732]
[1737218519621,32.35829732,248.29,248.17,32.35829732]
[1737218519822,32.35829732,248.31,248.19,32.35829732]
[1737218520038,32.35829732,248.33,248.19,32.35829732]
[1737218520211,32.35829732,248.33,248.21,32.35829732]
[1737218520405,54.63288306,248.56,248.32,32.35829732]
[1737218520406,32.35829732,248.44,248.32,32.35829732]
[1737218520611,32.35829732,248.53,248.4,32.35829732]
[1737218520832,4.0231,248.56,248.14,34.2547]
[1737218521334,4.022,248.63,248.25,20.0]
[1737218521508,14.0771,248.63,248.25,20.0]
[1737218521910,32.35829732,248.49,248.37,32.35829732]
[1737218522125,32.35829732,248.53,248.41,32.35829732]
[1737218522431,32.35829732,248.55,248.43,32.35829732]
[1737218522823,32.35829732,248.53,248.41,32.35829732]
[1737218523018,14.0771,248.63,248.43,32.35829732]
[1737218523019,4.022,248.63,248.43,32.35829732]
[1737218523219,32.35829732,248.53,248.41,32.35829732]
[1737218523439,32.35829732,248.55,248.43,32.35829732]
[1737218523620,32.35829732,248.53,248.41,32.35829732]
[1737218523928,32.35829732,248.51,248.39,32.35829732]
[1737218524127,14.0771,248.63,248.22,34.2437]
[1737218524128,32.35829732,248.44,248.31,32.35829732]
[1737218524337,32.35829732,248.4,248.27,32.35829732]
[1737218524528,32.35829732,248.44,248.33,32.35829732]
[1737218524837,32.35829732,248.42,248.3,32.35829732]
[1737218525225,52.35829732,248.33,248.22,32.35829732]
[1737218525406,32.35829732,248.31,248.19,32.35829732]
[1737218525755,32.35829732,248.49,248.3,32.35829732]
[1737218525936,32.35829732,248.47,248.35,32.35829732]
[1737218526114,32.35829732,248.45,248.33,32.35829732]
[1737218526318,32.35829732,248.49,248.41,0.03]
[1737218526542,32.35829732,248.58,248.45,32.35829732]
[1737218526826,32.35829732,248.58,248.46,32.35829732]
[1737218527330,32.35829732,248.56,248.44,32.35829732]
[1737218527707,32.35829732,248.58,248.46,32.35829732]
[1737218527914,32.35829732,248.6,248.48,32.35829732]
[1737218528313,32.35829732,248.58,248.46,32.35829732]
[1737218528538,32.35829732,248.61,248.49,32.35829732]
[1737218528709,32.35829732,248.57,248.45,32.35829732]
[1737218528915,32.35829732,248.57,248.42,14.089]
[1737218529136,32.35829732,248.54,248.42,36.38369732]
[1737218529318,14.1395,248.64,248.41,0.03]
[1737218529319,32.35829732,248.52,248.41,0.03]
[1737218529632,32.35829732,248.56,248.43,32.35829732]
[1737218529832,32.35829732,248.56,248.45,32.35829732]
[1737218530334,32.35829732,248.56,248.44,32.35829732]
[1737218530515,32.35829732,248.58,248.42,4.0254]
[1737218530718,32.35829732,248.54,248.42,36.38369732]
[1737218531130,32.35829732,248.56,248.44,32.35829732]
[1737218531329,32.35829732,248.54,248.44,36.38329732]
[1737218531533,32.35829732,248.6,248.48,32.35829732]
[1737218531711,32.35829732,248.56,248.44,32.35829732]
[1737218531915,4.0221,248.63,248.42,4.0254]
[1737218531916,32.35829732,248.54,248.42,36.38369732]
[1737218532111,32.35829732,248.54,248.41,0.03]
[1737218532112,32.35829732,248.44,248.41,0.03]
[1737218532335,11.97,248.5,248.2,32.35829732]
[1737218532521,35.64699703,248.63,247.95,12.5118]
[1737218532731,0.70442106,248.62,248.02,30.0]
[1737218533032,20.0,248.6,248.02,30.73726773]
[1737218533440,31.97,248.55,248.03,14.1111]
[1737218533622,32.35829732,248.35,248.24,32.35829732]
[1737218533824,31.97,248.55,248.15,32.35829732]
[1737218533825,32.35829732,248.27,248.15,32.35829732]
[1737218534142,34.1941,248.58,247.79,20.48900912]
[1737218534143,32.35829732,248.16,248.0,32.35829732]
[1737218534336,32.35829732,248.11,248.0,32.35829732]
[1737218534540,32.35829732,248.17,248.06,32.35829732]
[1737218534835,43.5,248.44,247.93,14.1167]
[1737218535314,14.089,248.42,247.93,20.1669]
[1737218535521,11.97,248.41,247.93,20.1669]
[1737218535737,32.35829732,248.09,247.97,32.35829732]
[1737218536044,20.56543694,248.24,247.59,12.642]
[1737218536339,32.35829732,248.32,247.68,32.35829732]
[1737218536538,0.70442106,248.4,247.69,5.46942101]